bitfinex-derivatives/quotes_ETHF0:USTF0_20250405
["timestamp","ask_amount","ask_price","bid_price","bid_amount"]
[1743885818328,3.2078,1799.1,1798.1,3.2078]
[1743885818515,0.04398109,1800.1,1799.0,3.2078]
[1743885818717,3.2078,1799.8,1798.7,3.2078]
[1743885819019,3.2078,1798.8,1798.5,0.00834214]
[1743885819221,9.109,1799.7,1796.7,3.2078]
[1743885819222,3.2078,1797.9,1796.7,3.2078]
[1743885819425,3.2078,1797.6,1796.7,3.2078]
[1743885819621,9.121,1797.8,1795.8,9.117]
[1743885819622,3.2078,1797.0,1796.4,4.7018]
[1743885819821,3.2078,1797.5,1796.8,5.39279302]
[1743885820020,3.98697,1797.5,1796.8,5.39279302]
[1743885820223,3.2078,1797.3,1796.8,2.18499302]
[1743885820421,0.77941,1796.9,1796.8,2.18499302]
[1743885820724,0.77941,1796.9,1795.4,3.2078]
[1743885820725,1.94885,1796.7,1795.4,3.2078]
[1743885820930,9.12,1796.8,1796.7,2.14e-06]
[1743885821128,3.98725,1796.8,1796.7,2.14e-06]
[1743885821331,3.2078,1797.2,1795.9,1.494]
[1743885821529,0.77943,1796.9,1796.4,3.2078]
[1743885821824,2.70208,1797.8,1796.4,3.2078]
[1743885821825,3.2078,1797.3,1796.4,3.2078]
[1743885822130,1.5184,1797.2,1796.4,3.2078]
[1743885822325,0.77907,1797.7,1797.1,3.2078]
[1743885822626,3.2078,1797.9,1796.7,3.21614214]
[1743885822826,1.5184,1797.6,1797.0,3.2078]
[1743885823130,3.2078,1797.5,1796.6,3.2078]
[1743885823320,3.2078,1797.0,1796.3,3.2078]
[1743885823624,0.00834214,1797.2,1796.9,0.00834214]
[1743885823825,0.00834214,1797.2,1797.0,3.2078]
[1743885824128,3.2078,1798.8,1797.4,3.2078]
[1743885824322,1.5184,1798.9,1798.4,3.2078]
[1743885824518,1.94535,1799.9,1798.4,3.2078]
[1743885824519,3.2078,1800.0,1798.8,3.2078]
[1743885824822,3.21067411,1800.1,1799.3,3.2078]
[1743885825022,0.78093411,1800.1,1799.5,3.2078]
[1743885825332,0.77735,1801.7,1800.9,0.77767]
[1743885825627,3.2078,1802.7,1801.6,3.18727477]
[1743885825835,6.07040266,1803.2,1802.5,3.2078]
[1743885826123,1.94031,1804.6,1801.7,1.4216]
[1743885826124,3.2078,1802.6,1801.7,1.4216]
[1743885826327,3.2078,1802.6,1800.6,35.101]
[1743885826328,3.2078,1802.1,1800.9,3.2078]
[1743885826518,0.01304819,1801.5,1801.1,3.2078]
[1743885826721,0.01304819,1801.5,1801.2,4.6294]
[1743885826934,0.01304819,1801.5,1801.4,3.2078]
[1743885827121,0.77755,1801.2,1801.1,7.38e-06]
[1743885827322,3.2078,1801.2,1799.7,3.2078]
[1743885827524,3.2078,1800.5,1799.5,3.2078]
[1743885827744,3.2078,1800.0,1799.1,3.64680265]
[1743885828031,3.2078,1800.6,1799.7,3.2078]
[1743885828225,1.43251825,1800.6,1800.0,3.2078]
[1743885828529,3.2078,1800.1,1800.0,0.00831738]
[1743885828729,0.01226437,1800.0,1798.9,3.2078]
[1743885828934,3.2078,1799.4,1798.7,1.5211]
[1743885829135,3.2078,1799.9,1798.7,4.7289]
[1743885829322,3.2078,1800.0,1799.1,3.2078]
[1743885829522,3.2078,1799.8,1799.2,1.5211]
[1743885829821,3.2078,1799.6,1799.3,0.00831738]
[1743885830024,3.2078,1799.4,1799.3,0.00831738]
[1743885830224,0.00831738,1799.7,1799.3,7.38e-06]
[1743885830434,3.21611738,1799.7,1799.3,0.43901003]
[1743885830622,3.2078,1800.4,1799.6,3.2078]
[1743885830933,3.2078,1799.9,1799.4,10.28508239]
[1743885831131,3.2078,1799.5,1798.7,3.2078]
[1743885831338,3.2078,1799.5,1798.9,3.2078]
[1743885831631,0.77765,1801.0,1800.2,0.77796]
[1743885831940,0.77759,1801.1,1801.0,1.75e-06]
[1743885832133,6.48539,1801.1,1801.0,1.75e-06]
[1743885832326,6.48539,1801.1,1800.3,3.2078]
[1743885832327,2.5,1801.1,1800.3,3.2078]
[1743885832522,45.027,1801.6,1800.9,7.38e-06]
[1743885832523,3.98544,1801.0,1800.9,7.38e-06]
[1743885832724,1.94423,1800.9,1799.8,3.2078]
[1743885833037,1.6246,1800.0,1798.5,3.2078]
[1743885833229,3.2078,1799.7,1799.2,0.77837]
[1743885833429,3.2078,1800.0,1799.3,1.4546]
[1743885833623,3.2078,1800.2,1799.5,3.2078]
[1743885833933,3.2078,1799.7,1799.3,1.4546]
[1743885834133,3.2078,1799.9,1799.3,1.4546]
[1743885834434,0.00834097,1800.0,1799.3,1.4546]
[1743885834435,0.00834097,1800.0,1799.7,3.21614097]
[1743885834629,0.78643097,1800.0,1799.8,1.3864]
[1743885834835,0.00834097,1800.0,1799.8,1.3864]
[1743885835328,3.2078,1801.6,1800.0,3.2078]
[1743885835534,3.2078,1800.5,1799.9,13.27404497]
[1743885835723,0.77764,1801.0,1800.1,7.10008748]
[1743885835928,0.7779,1800.4,1800.1,7.10008748]
[1743885836134,3.2078,1800.3,1798.9,3.2078]
[1743885836326,0.02058175,1799.0,1798.5,3.2078]
[1743885836530,0.00808175,1799.0,1798.5,3.2078]
[1743885836732,3.2078,1799.6,1798.9,3.2078]
[1743885836936,0.00834097,1799.8,1799.5,3.2078]
[1743885837235,3.2078,1799.7,1799.3,3.2078]
[1743885837533,0.00834097,1799.8,1799.7,0.7782]
[1743885837836,3.2078,1800.1,1799.3,3.2078]
[1743885838136,3.2078,1800.6,1800.0,3.2078]
[1743885838431,3.2078,1800.9,1800.3,3.2078]
[1743885838638,0.77768,1801.0,1800.7,3.2078]
[1743885838830,3.2078,1801.1,1800.8,1.4212]
[1743885839032,0.77785,1800.5,1800.4,9.7e-07]
[1743885839534,3.2078,1800.9,1800.4,2.50000097]
[1743885839738,0.00825894,1801.0,1800.7,3.2078]
[1743885840039,3.2078,1800.9,1800.4,3.20780097]
[1743885840237,0.00825894,1801.0,1800.6,3.2078]
[1743885840435,0.00825894,1801.0,1800.5,3.2078]
[1743885840634,0.00825894,1801.0,1800.5,11.07101216]
[1743885840935,0.77772,1800.8,1800.4,9.7e-07]
[1743885841139,0.77785,1800.5,1800.4,9.7e-07]
[1743885841338,10.94585,1800.5,1800.4,9.7e-07]
[1743885841635,0.77854,1798.9,1798.8,3.2078]
[1743885841838,0.02058175,1798.8,1797.9,3.2078]
[1743885842039,3.2078,1798.0,1796.8,3.2078]
[1743885842240,3.2078,1796.9,1796.5,0.8756]
[1743885842549,3.2078,1796.6,1795.8,11.36183193]
[1743885842732,3.2078,1796.1,1795.8,11.36183193]
[1743885843036,8.02253489,1796.8,1795.8,11.36183193]
[1743885843037,3.98764,1795.9,1795.8,6.79024018]
[1743885843238,0.00834097,1796.9,1795.8,5.53486018]
[1743885843544,3.2078,1796.5,1795.8,5.53486018]
[1743885843749,6.04719965,1796.8,1796.2,0.77968]
[1743885843942,3.2078,1796.3,1796.0,0.00834097]
[1743885844138,3.2078,1796.4,1796.0,0.00834097]
[1743885844440,3.2078,1796.2,1796.0,0.00834097]
[1743885844836,3.2078,1796.8,1796.0,5.71614097]
[1743885845140,0.00834097,1796.9,1796.4,3.2078]
[1743885845336,0.00834097,1796.9,1796.5,1.4439]
[1743885845540,0.00834097,1796.9,1796.4,3.2078]
[1743885845931,0.00834097,1796.9,1796.0,0.00834097]
[1743885845932,0.77976,1796.1,1796.0,0.00834097]
[1743885846135,3.2078,1796.1,1795.3,5.43177]
[1743885846433,3.2078,1795.9,1795.3,4.6517]
[1743885846636,0.77989,1795.8,1795.7,0.37597]
[1743885846833,3.2078,1796.2,1795.5,3.2078]
[1743885847039,3.2078,1796.2,1795.7,3.2078]
[1743885847243,0.00834097,1796.0,1795.9,0.77984]
[1743885847537,3.2078,1797.8,1796.1,1.94938]
[1743885847741,10.78,1798.6,1796.8,3.2078]
[1743885847742,3.2078,1797.7,1796.8,3.2078]
[1743885847935,3.2078,1798.4,1797.6,0.77908]
[1743885848137,3.2078,1797.8,1796.9,7.40252802]
[1743885848437,3.2078,1798.1,1797.3,0.77921]
[1743885848639,0.00834097,1797.5,1797.3,1.5314]
[1743885848943,0.77915,1797.5,1797.4,7.34810893]
[1743885849245,3.2078,1798.0,1797.2,0.00834097]
[1743885849441,0.779,1797.9,1797.2,0.78760097]
[1743885849645,3.2078,1798.5,1797.9,0.77895]
[1743885849944,3.2078,1798.2,1797.7,3.2078]
[1743885850241,1.49664097,1798.4,1797.6,3.2078]
[1743885850434,0.00834097,1798.4,1798.3,0.7788]
[1743885850638,0.00834097,1798.4,1797.8,3.21614097]
[1743885850639,1.94586,1799.4,1798.2,3.98661]
[1743885850944,3.2078,1799.0,1798.6,3.2078]
[1743885851137,3.2078,1799.0,1797.5,0.556]
[1743885851138,3.2078,1798.7,1798.3,7.29456774]
[1743885851339,3.2078,1798.6,1797.5,3.2078]
[1743885851639,3.2078,1798.9,1798.0,3.2078]
[1743885851834,0.00825894,1798.2,1798.1,0.77889]
[1743885852042,3.2078,1799.7,1798.3,1.94702]
[1743885852243,10.564,1800.6,1799.1,3.2078]
[1743885852244,3.2078,1799.6,1799.1,3.2078]
[1743885852446,3.2078,1799.9,1799.6,0.04110698]
[1743885852638,0.77809,1800.0,1799.6,0.04110698]
[1743885852838,2.80082,1800.8,1800.1,0.778]
[1743885852839,3.2078,1800.8,1800.1,0.778]
[1743885853138,0.77735,1801.7,1801.1,0.77756]
[1743885853338,0.77736,1801.7,1801.4,3.2078]
[1743885853534,3.2078,1801.6,1801.2,0.00834097]
[1743885853734,3.2078,1801.8,1801.4,3.2078]
[1743885854034,35.061,1802.8,1801.6,3.2078]
[1743885854035,3.2078,1802.8,1801.6,3.2078]
[1743885854239,3.2078,1801.7,1801.5,13.352317]
[1743885854453,3.2078,1801.8,1801.2,0.00834097]
[1743885854844,3.2078,1801.7,1801.2,0.00834097]
[1743885855138,1.94389,1801.2,1800.2,0.8582]
[1743885855338,5.15256,1800.4,1799.4,3.2078]
[1743885855547,0.02058175,1799.4,1798.9,1.404]
[1743885855746,0.02058175,1799.4,1799.0,3.2078]
[1743885855938,0.02058175,1799.0,1798.9,1.404]
[1743885856139,0.02058175,1799.0,1798.9,2.18254]
[1743885856339,0.00834097,1799.1,1798.9,11.7636856]
[1743885856542,3.2078,1800.9,1799.3,1.94588]
[1743885856844,3.2078,1800.6,1799.6,3.2078]
[1743885857038,3.2078,1801.0,1800.3,0.77794]
[1743885857239,3.2078,1801.0,1800.4,1.404]
[1743885857440,3.2078,1801.4,1800.4,8.51335184]
[1743885857641,3.2078,1801.7,1800.8,3.2078]
[1743885857941,3.2078,1801.7,1800.7,3.2078]
[1743885858137,2.568,1802.4,1801.4,3.2078]
[1743885858138,3.2078,1802.4,1801.4,3.2078]
[1743885858443,3.2078,1802.7,1802.0,3.2078]
[1743885858752,3.2078,1803.3,1802.3,3.2078]
[1743885859044,3.2078,1802.9,1802.2,0.00834097]
[1743885859250,0.77708,1802.3,1802.2,0.00834097]
[1743885859441,5.15049,1802.4,1801.1,3.2078]
[1743885859638,3.2078,1802.0,1801.3,3.2078]
[1743885859844,2.318,1803.3,1801.9,3.2078]
[1743885860045,3.2078,1803.1,1802.1,3.2078]
[1743885860244,0.77672,1803.2,1802.3,3.2078]
[1743885860449,3.2078,1802.4,1801.8,4.0533]
[1743885860646,3.21614097,1802.9,1802.6,0.00834097]
[1743885860947,0.77636,1804.0,1802.8,3.2078]
[1743885861148,0.77636,1804.0,1802.7,7.30132465]
[1743885861149,3.2078,1803.6,1802.7,10.50912465]
[1743885861343,6.74442031,1803.8,1803.1,3.2078]
[1743885861539,1.4099,1803.8,1802.9,10.50912465]
[1743885861744,1.4099,1803.8,1803.3,3.2078]
[1743885861953,3.2078,1803.4,1802.9,1.5609]
[1743885862141,3.2078,1804.1,1803.4,0.00831624]
[1743885862345,4.7276,1804.3,1803.4,0.00831624]
[1743885862645,0.04398109,1805.3,1804.2,3.2078]
[1743885862847,0.04398109,1805.3,1804.3,36.5549]
[1743885863048,3.2078,1804.4,1804.3,7.17302595]
[1743885863240,3.98397,1804.4,1804.3,5.95e-06]
[1743885863548,6.38961517,1804.4,1804.2,6.24e-06]
[1743885863743,6.38961517,1804.4,1803.2,3.2078]
[1743885863744,1.94065,1804.2,1803.3,1.5609]
[1743885863944,3.2078,1803.7,1802.9,8.74860291]
[1743885864153,0.77647,1803.7,1803.2,1.5609]
[1743885864350,0.77651,1803.7,1803.2,1.5609]
[1743885864552,3.2078,1804.8,1803.5,3.2078]
[1743885864743,3.2078,1804.2,1803.4,3.2078]
[1743885864946,2.3235,1804.1,1804.0,6.24e-06]
[1743885865851,7.255,1804.1,1803.1,1.75426]
[1743885866151,0.77708,1802.3,1802.0,3.2078]
[1743885866345,0.77708,1802.3,1802.2,11.10783975]
[1743885866549,0.7772,1802.0,1801.9,7.22e-06]
[1743885866747,0.77785,1800.5,1800.4,3.2078]
[1743885866947,3.2078,1800.6,1799.9,9.36926418]
[1743885867243,0.7779,1800.4,1800.3,6.24e-06]
[1743885867445,3.2078,1799.7,1798.4,3.2078]
[1743885867644,3.2078,1799.9,1798.8,3.2078]
[1743885867847,3.2078,1800.5,1799.6,3.2078]
[1743885868051,3.2078,1800.5,1799.8,3.2078]
[1743885868250,3.2078,1801.4,1800.6,0.77777]
[1743885868455,1.5339,1801.6,1800.8,3.2078]
[1743885868652,1.5339,1801.6,1799.9,7.63549832]
[1743885868653,1.51331825,1801.6,1800.9,3.2078]
[1743885868949,0.00831624,1801.4,1800.9,7.21152186]
[1743885869155,0.77755,1801.2,1801.1,0.00831624]
[1743885869356,1.94399,1801.1,1800.0,3.2078]
[1743885869552,0.77801,1800.2,1800.0,9.36926418]
[1743885869754,0.77801,1800.2,1799.3,0.77836]
[1743885869755,3.2078,1800.1,1798.9,34.993]
[1743885870055,34.993,1800.7,1798.8,0.77856]
[1743885870056,3.2078,1799.4,1798.8,3.2078]
[1743885870254,3.2078,1799.6,1798.9,12.57706418]
[1743885870554,0.77854,1799.0,1798.7,3.2078]
[1743885870761,3.2078,1798.8,1798.3,3.2078]
[1743885870955,1.95415624,1799.4,1798.1,9.36926418]
[1743885870956,3.2078,1798.6,1798.1,9.36926418]
[1743885871153,3.2078,1798.7,1798.0,9.75156418]
[1743885871456,3.2078,1798.7,1798.2,9.81e-06]
[1743885871658,36.526,1799.0,1798.2,9.81e-06]
[1743885871659,3.2078,1798.5,1798.2,9.81e-06]
[1743885871858,0.7788,1798.3,1798.2,9.81e-06]
[1743885872055,0.77889,1798.1,1798.0,9.81e-06]
[1743885872258,3.98669,1798.1,1798.0,9.81e-06]
[1743885872462,6.48669,1798.1,1798.0,9.81e-06]
[1743885872658,0.77941,1796.9,1796.5,31.04046621]
[1743885872858,0.77941,1796.9,1796.8,40.01804117]
[1743885873060,0.77941,1796.9,1796.8,22.38548104]
[1743885873563,0.00833981,1797.0,1796.8,9.36926418]
[1743885873758,0.00833981,1797.0,1796.9,9.36926418]
[1743885873954,1.351,1797.3,1796.7,0.00833981]
[1743885874268,1.351,1797.3,1796.7,9.81e-06]
[1743885874269,3.98725,1796.8,1796.7,9.81e-06]
[1743885874455,0.77943,1796.9,1796.7,9.81e-06]
[1743885874655,2.31885,1796.8,1796.7,9.81e-06]
[1743885874863,5.52665,1796.8,1796.7,9.81e-06]
[1743885875062,4.7472,1796.8,1796.7,9.81e-06]
[1743885875263,5.52665,1796.8,1796.7,9.81e-06]
[1743885875463,4.7472,1796.8,1796.7,9.81e-06]
[1743885875669,5.52665,1796.8,1796.7,9.81e-06]
[1743885875965,8.02665,1796.8,1796.7,9.81e-06]
[1743885876164,2.31885,1796.8,1796.7,9.81e-06]
[1743885876374,5.52665,1796.8,1796.7,9.81e-06]
[1743885876666,0.00833981,1796.9,1796.7,9.36927399]
[1743885876868,0.00833981,1796.9,1796.8,3.2078]
[1743885877274,0.77945,1796.8,1796.7,9.81e-06]
[1743885877473,5.19125,1796.8,1796.7,9.81e-06]
[1743885877768,6.9118,1796.8,1795.6,3.2078]
[1743885878068,0.77993,1795.7,1795.6,6.78386614]
[1743885878273,4.4128,1796.1,1795.6,9.99166614]
[1743885878473,0.77987,1795.9,1795.4,3.2078]
[1743885878676,0.77991,1795.8,1795.6,3.2078]
[1743885878875,0.78,1795.6,1795.3,3.2078]
[1743885879175,0.00833981,1795.9,1795.5,3.21613981]
[1743885879476,0.00833981,1795.9,1795.7,3.2078]
[1743885879968,0.00833981,1795.9,1795.8,3.2078]
[1743885880270,0.77997,1795.6,1795.5,0.00833981]
[1743885880461,0.77997,1795.6,1795.5,9.81e-06]
[1743885880971,1.5274,1795.6,1795.5,9.81e-06]
[1743885881268,1.202,1795.8,1795.5,9.81e-06]
[1743885881469,2.30737,1795.7,1795.5,9.81e-06]
[1743885881670,0.00833981,1795.9,1795.6,12.57706418]
[1743885881970,0.00833981,1795.9,1795.8,3.2078]
[1743885882376,0.00833981,1795.9,1795.8,19.36093032]
[1743885882672,0.00833981,1795.9,1795.5,3.20780981]
[1743885882870,0.77997,1795.6,1795.5,9.81e-06]
[1743885883372,2.36737,1795.6,1795.5,9.81e-06]
[1743885883571,4.86737,1795.6,1795.5,9.81e-06]
[1743885883975,2.36737,1795.6,1795.5,9.81e-06]
[1743885884367,1.5874,1795.6,1795.5,9.81e-06]
[1743885884565,0.77997,1795.6,1795.5,9.81e-06]
[1743885884966,6.48777,1795.6,1795.5,9.81e-06]
[1743885885171,0.78045,1794.5,1794.4,3.2078]
[1743885885474,0.78041,1794.7,1794.4,3.2078]
[1743885885674,0.78045,1794.5,1794.4,16.15313032]
[1743885886072,0.78062,1794.2,1793.9,3.2078]
[1743885886270,1.95106,1794.6,1793.9,18.13393032]
[1743885886472,0.00833981,1794.2,1794.0,9.36926418]
[1743885886668,0.78052,1794.4,1794.1,3.2078]
[1743885886873,1.5162,1794.7,1794.3,3.98832]
[1743885887070,2.29658,1794.7,1794.3,3.98834]
[1743885887377,0.78067,1794.0,1793.9,0.00565807]
[1743885887574,2.07367,1794.0,1793.9,8.07e-06]
[1743885887777,4.57367,1794.0,1793.9,8.07e-06]
[1743885888080,6.08987,1794.0,1793.9,8.07e-06]
[1743885888372,3.58987,1794.0,1793.9,8.07e-06]
[1743885888568,1.293,1794.2,1793.9,8.07e-06]
[1743885888773,0.00833981,1794.1,1794.0,12.57706418]
[1743885888975,0.00833981,1794.1,1794.0,13.35773418]
[1743885889278,0.78061,1794.2,1794.0,16.5562907]
[1743885889477,0.78057,1794.3,1794.0,16.5562907]
[1743885889680,1.95114,1794.5,1794.0,16.5562907]
[1743885889874,0.78067,1794.0,1793.9,8.07e-06]
[1743885890081,14.58747,1794.0,1793.9,8.07e-06]
[1743885890274,17.08747,1794.0,1793.9,8.07e-06]
[1743885890974,18.69827,1794.0,1793.9,8.07e-06]
[1743885892076,25.13088304,1794.0,1793.9,8.07e-06]
[1743885893073,12.03188304,1794.0,1793.9,8.07e-06]
[1743885893279,16.03527,1794.0,1793.9,8.07e-06]
[1743885893782,11.21667,1794.0,1793.9,8.07e-06]
[1743885894276,16.20107,1794.0,1793.9,8.07e-06]
[1743885894481,18.70107,1794.0,1793.9,8.07e-06]
[1743885894677,0.78115,1792.9,1792.8,4.969]
[1743885894975,0.78115,1792.9,1792.8,15.1096907]
[1743885895174,0.78115,1792.9,1792.8,13.63046418]
[1743885895979,0.78115,1792.9,1792.8,11.13046418]
[1743885896176,0.78119,1792.8,1792.7,0.008364]
[1743885896377,0.78119,1792.8,1792.7,3.98759052]
[1743885896577,0.78131,1792.6,1792.3,5.0138]
[1743885896883,0.78132,1792.5,1792.4,11.17526418]
[1743885897287,0.78132,1792.5,1792.4,13.67526418]
[1743885897773,13.5888,1793.2,1792.5,9.36926418]
[1743885897980,0.78124,1792.7,1792.5,12.57706418]
[1743885898278,0.78123,1792.8,1792.6,11.13416418]
[1743885898478,0.78123,1792.8,1792.7,4.9727]
[1743885898681,0.78123,1792.8,1792.7,13.2195307]
[1743885898985,0.008364,1792.9,1792.3,3.216164]
[1743885899284,0.78128,1792.6,1792.5,3.2078]
[1743885899583,0.78126,1792.7,1792.5,3.2078]
[1743885899779,0.78126,1792.7,1792.6,9.36926418]
[1743885900175,0.78109,1793.1,1792.6,11.86926418]
[1743885900379,1.95148,1794.2,1793.0,3.2078]
[1743885900578,5.15948,1794.0,1792.7,11.32228418]
[1743885900878,10.153,1794.1,1793.5,3.2078]
[1743885901284,0.78076,1793.8,1793.6,9.36926418]
[1743885901584,0.7808,1793.7,1793.6,0.008364]
[1743885901784,0.7808,1793.7,1793.6,4e-06]
[1743885902384,0.7808,1793.7,1793.6,12.57706818]
[1743885902589,0.7808,1793.7,1793.6,4e-06]
[1743885903084,0.7808,1793.7,1793.6,12.57706818]
[1743885903387,0.7808,1793.7,1793.6,4e-06]
[1743885903586,0.7808,1793.7,1793.6,12.57706818]
[1743885903783,0.7808,1793.7,1793.6,3.207804]
[1743885904092,0.78075,1793.9,1793.6,15.07706818]
[1743885904382,0.78076,1793.8,1793.7,9.36926418]
[1743885904587,0.008364,1794.0,1793.7,11.86926418]
[1743885904788,0.78071,1793.9,1793.8,12.57706418]
[1743885904982,0.78071,1793.9,1793.8,3.2078]
[1743885905182,0.78071,1793.9,1793.8,15.07706418]
[1743885905389,0.008364,1794.0,1793.8,15.07706418]
[1743885905589,0.008364,1794.0,1793.9,9.36926418]
[1743885905993,0.008364,1794.0,1793.9,11.86926418]
[1743885906184,0.789034,1794.0,1793.9,9.36926418]
[1743885906587,0.008364,1794.0,1793.9,11.86926418]
[1743885906784,0.789034,1794.0,1793.9,9.36926418]
[1743885906979,0.008364,1794.0,1793.9,12.64997418]
[1743885907283,9.878,1794.6,1794.3,0.78052]
[1743885907483,5.15801,1795.4,1794.5,3.2078]
[1743885907687,0.78032,1794.8,1794.7,3.2078]
[1743885907883,0.78032,1794.8,1794.0,12.90296418]
[1743885907884,0.78037,1794.7,1794.6,3.2078]
[1743885908088,9.86,1795.2,1794.6,3.2078]
[1743885908390,0.78032,1794.8,1794.7,9.37762818]
[1743885908691,0.008364,1795.1,1794.7,0.008364]
[1743885908995,0.788554,1795.1,1795.0,3.2078]
[1743885909386,0.788554,1795.1,1795.0,12.57706418]
[1743885909588,0.78028,1794.9,1794.8,1.8576]
[1743885909990,0.78032,1794.8,1794.7,4e-06]
[1743885910189,3.98812,1794.8,1794.7,4e-06]
[1743885910489,6.48812,1794.8,1794.7,4e-06]
[1743885910690,8.21122,1794.8,1794.7,4e-06]
[1743885910987,0.78076,1793.8,1793.7,3.2078]
[1743885911490,0.78076,1793.8,1793.7,15.07706418]
[1743885911789,0.78076,1793.8,1793.7,12.57706418]
[1743885911993,9.705,1794.5,1793.7,12.57706418]
[1743885911994,0.789094,1793.9,1793.7,12.57706418]
[1743885912195,0.789094,1793.9,1793.8,11.17306418]
[1743885913094,0.008364,1793.9,1793.8,14.45382418]
[1743885913287,12.8428,1794.6,1793.8,13.67306418]
[1743885913486,9.635,1794.6,1794.3,3.2078]
[1743885913689,0.7805,1794.4,1794.3,3.2078]
[1743885914195,0.7805,1794.4,1794.3,12.57706418]
[1743885914993,0.008364,1794.5,1794.3,15.07706418]
[1743885915193,0.008364,1794.5,1794.4,10.14976418]
[1743885915393,0.008364,1794.5,1794.4,12.64976418]
[1743885915595,0.008364,1794.5,1794.4,11.86926418]
[1743885916093,0.788814,1794.5,1794.4,9.36926418]
[1743885916288,1.959594,1794.5,1794.0,3.2078]
[1743885916594,0.78063,1794.1,1794.0,3.2078]
[1743885916803,0.78063,1794.1,1794.0,11.33044418]
[1743885917292,0.7808,1793.7,1793.6,4e-06]
[1743885917498,3.9886,1793.7,1793.6,4e-06]
[1743885917694,3.2808,1793.7,1793.6,4e-06]
[1743885917893,6.4886,1793.7,1793.6,4e-06]
[1743885918092,8.2261,1793.7,1793.6,4e-06]
[1743885918497,17.6401,1793.7,1793.6,4e-06]
[1743885919097,10.1948,1793.7,1793.6,8.12264818]
[1743885919496,3.2078,1793.9,1793.6,11.33044818]
[1743885919697,0.78078,1793.8,1793.7,8.12264418]
[1743885920399,9.371,1794.1,1793.7,8.12264418]
[1743885920605,9.337,1794.3,1794.0,3.2078]
[1743885920996,9.337,1794.3,1794.2,3.2078]
[1743885921296,5.15905,1794.4,1793.8,3.2078]
[1743885921500,0.78065,1794.1,1793.8,3.2078]
[1743885921699,0.78056,1794.3,1794.0,3.2078]
[1743885922102,0.78056,1794.3,1794.1,8.12264418]
[1743885922301,0.78058,1794.2,1794.1,8.12264418]
[1743885922598,0.7808,1793.7,1793.6,4e-06]
[1743885922799,3.9886,1793.7,1793.6,4e-06]
[1743885923198,0.7808,1793.7,1793.6,4e-06]
[1743885923397,6.4886,1793.7,1793.6,4e-06]
[1743885923599,0.7808,1793.7,1793.6,4e-06]
[1743885923800,3.9886,1793.7,1793.6,4e-06]
[1743885924002,0.7808,1793.7,1793.6,8.12264818]
[1743885924393,0.7808,1793.7,1793.6,4e-06]
[1743885924706,6.4886,1793.7,1793.6,4e-06]
[1743885925302,3.9886,1793.7,1793.6,4e-06]
[1743885925800,6.4886,1793.7,1793.6,4e-06]
[1743885926001,3.9886,1793.7,1793.6,4e-06]
[1743885926301,0.7808,1793.7,1793.6,8.12264818]
[1743885927497,0.7808,1793.7,1793.6,4e-06]
[1743885927703,2.6153,1793.7,1793.6,4e-06]
[1743885927903,5.1153,1793.7,1793.6,4e-06]
[1743885929108,0.78136,1792.5,1792.4,3.2078]
[1743885929302,0.78131,1792.6,1792.4,11.33044418]
[1743885929497,3.2078,1793.2,1792.5,8.12264418]
[1743885929805,0.78111,1793.0,1792.8,3.2078]
[1743885930008,3.2078,1793.2,1792.9,1.9036]
[1743885930307,0.78111,1793.0,1792.9,10.02624418]
[1743885930504,0.78111,1793.0,1792.9,1.9036]
[1743885930712,0.78111,1793.0,1792.9,10.02624418]
[1743885930909,0.789454,1793.1,1792.9,10.02624418]
[1743885931110,0.789454,1793.1,1793.0,8.12264418]
[1743885931507,0.008364,1793.1,1793.0,8.12264418]
[1743885931809,0.008364,1793.1,1793.0,13.83044418]
[1743885932005,0.789424,1793.1,1793.0,13.83044418]
[1743885932207,0.789424,1793.1,1793.0,11.33044418]
[1743885933113,0.789424,1793.1,1793.0,8.12264418]
[1743885933312,0.78115,1792.9,1792.8,3.2078]
[1743885933607,0.78115,1792.9,1792.8,6.98894418]
[1743885933808,0.78119,1792.8,1792.7,0.008364]
[1743885934005,0.78119,1792.8,1792.7,6.99730818]
[1743885934310,0.78119,1792.8,1791.7,16.28732304]
[1743885934311,0.78141,1792.3,1792.2,3.2078]
[1743885934507,0.78141,1792.3,1792.2,16.0712801]
[1743885934712,0.7814,1792.4,1792.2,21.85596828]
[1743885935004,0.7814,1792.4,1792.3,7.60468818]
[1743885935205,8.843,1792.6,1792.3,7.60468818]
[1743885935399,0.78132,1792.5,1792.4,5.78468818]
[1743885936003,0.78132,1792.5,1792.2,16.0796441]
[1743885936004,0.78141,1792.3,1792.2,16.0796441]
[1743885936203,0.78141,1792.3,1792.2,18.65653228]
[1743885936602,0.78141,1792.3,1792.2,11.7184141]
[1743885936804,6.48921,1792.3,1792.2,6.8981341]
[1743885937005,6.48921,1792.3,1792.2,3.87962932]
[1743885937207,6.48921,1792.3,1792.2,9.32e-06]
[1743885937409,0.78145,1792.2,1792.1,13.10572236]
[1743885937709,2.63435,1792.2,1792.1,10.58600236]
[1743885937908,5.13435,1792.2,1792.1,10.58600236]
[1743885938102,5.13435,1792.2,1792.1,1.00466236]
[1743885938311,0.78176,1791.5,1791.4,31.82920004]
[1743885938615,0.78193,1791.1,1791.0,3.2078]
[1743885938814,1.95484,1791.1,1790.5,1.8339]
[1743885939112,0.78215,1790.6,1790.5,7.61858818]
[1743885939309,0.78224,1790.5,1790.3,20.43077417]
[1743885939514,8.69,1790.5,1790.4,5.78468818]
[1743885939715,9.47224,1790.5,1790.4,5.78468818]
[1743885939911,0.78224,1790.4,1790.3,16.08315417]
[1743885940109,2.71344,1790.4,1790.3,16.08315417]
[1743885940311,5.21344,1790.4,1790.3,16.08315417]
[1743885940509,5.21344,1790.4,1790.3,13.60916417]
[1743885940720,2.71344,1790.4,1790.3,19.39385235]
[1743885941017,5.21344,1790.4,1790.3,5.52892417]
[1743885941318,0.78242,1790.0,1789.9,48.0891989]
[1743885941515,44.60942,1790.0,1789.9,45.03224048]
[1743885941816,47.10942,1790.0,1789.9,45.03224048]
[1743885942018,47.10942,1790.0,1789.9,41.79162048]